fUSD/lending_fUSD_20241207
["ID","MTS","AMOUNT","RATE_DAILY","PERIOD"]
[344539479,1733538637567,-226.803508,0.00010673,2]
[344539480,1733538637579,-500.0,0.00010673,2]
[344539481,1733538637591,-159.97906621,0.00010673,2]
[344539482,1733538637603,-154.91512341,0.00010673,2]
[344539483,1733538637615,-206.20333178,0.00010673,2]
[344539484,1733538637630,-199.87950401,0.00010673,2]
[344539485,1733538637643,-500.0,0.00010673,2]
[344539486,1733538637654,-500.0,0.00010673,2]
[344539487,1733538637666,-500.0,0.00010678,2]
[344539488,1733538637677,-500.0,0.00010678,2]
[344539489,1733538637694,-500.0,0.00010678,2]
[344539490,1733538637705,-500.0,0.00010678,2]
[344539491,1733538637720,-500.0,0.00010678,2]
[344539492,1733538637732,-500.0,0.00010678,2]
[344539493,1733538637744,-500.0,0.00010678,2]
[344539494,1733538637756,-500.0,0.00010678,2]
[344539495,1733538637767,-500.0,0.00010678,2]
[344539496,1733538637779,-500.0,0.00010678,2]
[344539497,1733538637791,-500.0,0.00010678,2]
[344539498,1733538637803,-166.15649605,0.00010678,2]
[344539499,1733538637815,-500.0,0.00010678,2]
[344539500,1733538637827,-500.0,0.00010678,2]
[344539501,1733538637840,-500.0,0.00010678,2]
[344539502,1733538637852,-500.0,0.00010678,2]
[344539503,1733538637863,-500.0,0.00010678,2]
[344539504,1733538637875,-920.34,0.00010678,2]
[344539505,1733538637887,-500.0,0.00010678,2]
[344539506,1733538637899,-500.0,0.00010678,2]
[344539507,1733538637910,-337.64781801,0.00010678,2]
[344539508,1733538637922,-500.0,0.00010678,2]
[344539509,1733538637933,-500.0,0.00010678,2]
[344539510,1733538637948,-500.0,0.00010678,2]
[344539511,1733538637959,-500.0,0.00010678,2]
[344539512,1733538637970,-500.0,0.00010678,2]
[344539513,1733538637982,-500.0,0.00010678,2]
[344539514,1733538637992,-500.0,0.00010678,2]
[344539515,1733538638003,-500.0,0.00010678,2]
[344539516,1733538638015,-500.0,0.00010678,2]
[344539517,1733538638027,-500.0,0.00010678,2]
[344539518,1733538638039,-500.0,0.00010678,2]
[344539519,1733538638052,-412.37277543,0.00010678,2]
[344539520,1733538638064,-500.0,0.00010678,2]
[344539523,1733538638076,-500.0,0.00010678,2]
[344539525,1733538638088,-500.0,0.00010678,2]
[344539527,1733538638101,-500.0,0.00010678,2]
[344539528,1733538638113,-535.83,0.00010678,2]
[344539529,1733538638125,-500.0,0.00010678,2]
[344539530,1733538638136,-500.0,0.00010678,2]
[344539531,1733538638148,-500.0,0.00010678,2]
[344539532,1733538638160,-500.0,0.00010678,2]
[344539533,1733538638171,-500.0,0.00010678,2]
[344539534,1733538638182,-500.0,0.00010678,2]
[344539535,1733538638196,-500.0,0.00010678,2]
[344539536,1733538638208,-500.0,0.00010678,2]
[344539537,1733538638218,-500.0,0.00010678,2]
[344539538,1733538638231,-347.08595103,0.00010678,2]
[344539539,1733538638242,-500.0,0.00010678,2]
[344539540,1733538638254,-500.0,0.00010678,2]
[344539541,1733538638266,-500.0,0.00010678,2]
[344539542,1733538638277,-500.0,0.00010678,2]
[344539543,1733538638289,-500.0,0.00010678,2]
[344539544,1733538638300,-698.17,0.00010678,2]
[344539545,1733538638311,-500.0,0.00010678,2]
[344539546,1733538638323,-500.0,0.00010678,2]
[344539547,1733538638334,-601.53810332,0.00010678,2]
[344539548,1733538638346,-500.0,0.00010678,2]
[344539549,1733538638358,-500.0,0.00010678,2]
[344539550,1733538638369,-500.0,0.00010678,2]
[344539551,1733538638381,-500.0,0.00010678,2]
[344539552,1733538638393,-500.0,0.00010678,2]
[344539553,1733538638404,-1200.0,0.00010678,2]
[344539554,1733538638416,-500.0,0.00010678,2]
[344539555,1733538638428,-500.0,0.00010678,2]
[344539556,1733538638442,-500.0,0.00010678,2]
[344539557,1733538638454,-500.0,0.00010678,2]
[344539558,1733538638466,-366.27383148,0.00010678,2]
[344539559,1733538638477,-500.0,0.00010678,2]
[344539560,1733538638489,-500.0,0.00010678,2]
[344539561,1733538638500,-500.0,0.00010678,2]
[344539562,1733538638512,-500.0,0.00010678,2]
[344539563,1733538638524,-500.0,0.00010678,2]
[344539564,1733538638536,-710.18,0.00010678,2]
[344539565,1733538638548,-500.0,0.00010678,2]
[344539566,1733538638559,-500.0,0.00010678,2]
[344539567,1733538638571,-500.0,0.00010678,2]
[344539568,1733538638583,-500.0,0.00010678,2]
[344539569,1733538638594,-500.0,0.00010678,2]
[344539570,1733538638606,-500.0,0.00010678,2]
[344539571,1733538638617,-500.0,0.00010678,2]
[344539573,1733538638629,-500.0,0.00010678,2]
[344539575,1733538638641,-500.0,0.00010678,2]
[344539577,1733538638652,-500.0,0.00010678,2]
[344539579,1733538638663,-422.87918575,0.00010678,2]
[344539581,1733538638675,-500.0,0.00010678,2]
[344539584,1733538638688,-500.0,0.00010678,2]
[344539586,1733538638700,-500.0,0.00010678,2]
[344539588,1733538638714,-500.0,0.00010678,2]
[344539590,1733538638725,-500.0,0.00010678,2]
[344539592,1733538638737,-500.0,0.00010678,2]
[344539594,1733538638749,-500.0,0.00010678,2]
[344539597,1733538638761,-500.0,0.00010678,2]
[344539599,1733538638772,-500.0,0.00010678,2]
[344539601,1733538638784,-1581.6,0.00010678,2]
[344539603,1733538638797,-500.0,0.00010678,2]
[344539605,1733538638808,-500.0,0.00010678,2]
[344539608,1733538638819,-948.74,0.00010678,2]
[344539610,1733538638830,-500.0,0.00010678,2]
[344539612,1733538638842,-614.09,0.00010678,2]
[344539614,1733538638854,-1046.74,0.00010678,2]
[344539616,1733538638865,-506.44,0.00010678,2]
[344539619,1733538638878,-761.38,0.00010678,2]
[344539621,1733538638888,-849.57,0.00010678,2]
[344539623,1733538638899,-500.0,0.00010678,2]
[344539625,1733538638911,-500.0,0.00010678,2]
[344539627,1733538638922,-566.69,0.00010678,2]
[344539629,1733538638933,-500.0,0.00010678,2]
[344539632,1733538638947,-510.93883639,0.00010678,2]
[344539634,1733538638959,-500.0,0.00010678,2]
[344539636,1733538638971,-1186.12,0.00010678,2]
[344539638,1733538638982,-500.0,0.00010678,2]
[344539641,1733538638993,-500.0,0.00010678,2]
[344539643,1733538639005,-500.0,0.00010678,2]
[344539645,1733538639016,-545.01,0.00010678,2]
[344539647,1733538639027,-500.0,0.00010678,2]
[344539649,1733538639038,-500.0,0.00010678,2]
[344539652,1733538639050,-500.0,0.00010678,2]
[344539654,1733538639061,-504.28135933,0.00010678,2]
[344539656,1733538639072,-500.0,0.00010678,2]
[344539658,1733538639084,-952.31,0.00010678,2]
[344539660,1733538639094,-500.0,0.00010678,2]
[344539662,1733538639105,-500.0,0.00010678,2]
[344539664,1733538639116,-589.84,0.00010678,2]
[344539666,1733538639127,-529.52,0.00010678,2]
[344539669,1733538639138,-503.09675099,0.00010678,2]
[344539671,1733538639149,-606.23,0.00010678,2]
[344539673,1733538639160,-502.39185381,0.00010678,2]
[344539675,1733538639170,-362.39367747,0.00010678,2]
[344539677,1733538639181,-500.0,0.00010678,2]
[344539679,1733538639196,-500.0,0.00010678,2]
[344539681,1733538639206,-500.0,0.00010678,2]
[344539683,1733538639217,-1030.64,0.00010678,2]
[344539686,1733538639228,-3793.97,0.00010678,2]
[344539688,1733538639239,-544.9,0.00010678,2]
[344539690,1733538639250,-1985.96,0.00010678,2]
[344539692,1733538639262,-509.54963431,0.00010678,2]
[344539694,1733538639273,-503.0849939,0.00010678,2]
[344539696,1733538639283,-500.0,0.00010678,2]
[344539698,1733538639295,-500.0,0.00010678,2]
[344539701,1733538639305,-500.0,0.00010678,2]
[344539703,1733538639316,-500.0,0.00010678,2]
[344539705,1733538639327,-516.46018075,0.00010678,2]
[344539707,1733538639338,-500.0,0.00010678,2]
[344539709,1733538639349,-500.0,0.00010678,2]
[344539711,1733538639360,-500.0,0.00010678,2]
[344539714,1733538639371,-500.0,0.00010678,2]
[344539716,1733538639381,-513.73153189,0.00010678,2]
[344539718,1733538639392,-2261.0,0.00010678,2]
[344539720,1733538639402,-500.0,0.00010678,2]
[344539722,1733538639413,-1000.0,0.00010678,2]
[344539724,1733538639423,-500.0,0.00010678,2]
[344539726,1733538639434,-502.83942472,0.00010678,2]
[344539728,1733538639447,-500.0,0.00010678,2]
[344539730,1733538639457,-500.0,0.00010678,2]
[344539733,1733538639469,-500.0,0.00010678,2]
[344539735,1733538639480,-806.39,0.00010678,2]
[344539737,1733538639491,-500.0,0.00010678,2]
[344539739,1733538639503,-551.15203429,0.00010678,2]
[344539741,1733538639513,-498.80959995,0.00010678,2]
[344539744,1733538639524,-500.0,0.00010678,2]
[344539746,1733538639535,-500.0,0.00010678,2]
[344539748,1733538639546,-500.0,0.00010678,2]
[344539750,1733538639557,-500.0,0.00010678,2]
[344539752,1733538639568,-500.0,0.00010678,2]
[344539754,1733538639579,-500.0,0.00010678,2]
[344539757,1733538639590,-697.68,0.00010678,2]
[344539759,1733538639600,-811.16,0.00010678,2]
[344539761,1733538639612,-500.0,0.00010678,2]
[344539763,1733538639624,-856.38,0.00010678,2]
[344539765,1733538639635,-935.1,0.00010678,2]
[344539767,1733538639646,-624.77,0.00010678,2]
[344539770,1733538639657,-500.0,0.00010678,2]
[344539772,1733538639668,-501.3882042,0.00010678,2]
[344539818,1733538640096,-501.66792935,0.00010678,2]
[344539822,1733538640123,-507.74175517,0.00010678,2]
[344539825,1733538640147,-503.01078926,0.00010678,2]
[344539826,1733538640164,-502.75511147,0.00010678,2]
[344539827,1733538640174,-1468.23,0.00010678,2]
[344539828,1733538640183,-500.0,0.00010678,2]
[344539829,1733538640196,-500.50185278,0.00010678,2]
[344539830,1733538640205,-503.83767123,0.00010678,2]
[344539831,1733538640214,-500.0,0.00010678,2]
[344539832,1733538640224,-500.0,0.00010678,2]
[344539833,1733538640234,-4797.17,0.00010678,2]
[344539834,1733538640243,-500.0,0.00010678,2]
[344539835,1733538640252,-1275.33,0.00010678,2]
[344539836,1733538640261,-542.7965903,0.00010678,2]
[344539837,1733538640270,-1057.06,0.00010678,2]
[344539838,1733538640279,-501.10176018,0.00010678,2]
[344539839,1733538640288,-349.88497656,0.00010678,2]
[344539840,1733538640297,-500.0,0.00010678,2]
[344539841,1733538640307,-507.12,0.00010678,2]
[344539842,1733538640316,-500.0,0.00010678,2]
[344539843,1733538640325,-500.0,0.00010678,2]
[344539844,1733538640334,-500.0,0.00010678,2]
[344539845,1733538640343,-500.0,0.00010678,2]
[344539846,1733538640352,-2743.45,0.00010678,2]
[344539847,1733538640362,-500.0,0.00010678,2]
[344539848,1733538640374,-500.0,0.00010678,2]
[344539849,1733538640383,-500.0,0.00010678,2]
[344539850,1733538640392,-500.0,0.00010678,2]
[344539851,1733538640401,-676.45,0.00010678,2]
[344539852,1733538640410,-500.0,0.00010678,2]
[344539853,1733538640420,-500.0,0.00010678,2]
[344539854,1733538640429,-500.0,0.00010678,2]
[344539855,1733538640439,-222.22,0.00010678,2]
[344539856,1733538640448,-500.0,0.00010678,2]
[344539857,1733538640457,-1026.51,0.00010678,2]
[344539858,1733538640466,-500.0,0.00010678,2]
[344539859,1733538640475,-500.0,0.00010678,2]
[344539860,1733538640485,-620.57,0.00010678,2]
[344539861,1733538640494,-500.0,0.00010678,2]
[344539862,1733538640504,-1497.18,0.00010678,2]
[344539863,1733538640513,-509.34329528,0.00010678,2]
[344539864,1733538640522,-500.0,0.00010678,2]
[344539865,1733538640531,-4753.16,0.00010678,2]
[344539866,1733538640541,-500.0,0.00010678,2]
[344539867,1733538640550,-507.15689848,0.00010678,2]
[344539868,1733538640559,-500.0,0.00010678,2]
[344539869,1733538640568,-607.28,0.00010678,2]
[344539870,1733538640577,-778.19,0.00010678,2]
[344539871,1733538640586,-500.0,0.00010678,2]
[344539872,1733538640595,-1146.06,0.00010679,2]
[344539873,1733538640604,-766.7,0.00010679,2]
[344539874,1733538640614,-500.0,0.00010679,2]
[344539875,1733538640625,-500.0,0.00010679,2]
[344539876,1733538640634,-500.0,0.00010679,2]
[344539877,1733538640643,-500.0,0.00010679,2]
[344539878,1733538640653,-500.0,0.00010679,2]
[344539879,1733538640662,-500.0,0.00010679,2]
[344539880,1733538640672,-567.01,0.00010679,2]
[344539881,1733538640681,-500.0,0.00010679,2]
[344539882,1733538640692,-521.22234499,0.00010679,2]
[344539883,1733538640701,-514.81,0.00010679,2]
[344539884,1733538640711,-500.0,0.00010679,2]
[344539885,1733538640722,-500.0,0.00010679,2]
[344539886,1733538640731,-657.0,0.00010679,2]
[344539887,1733538640740,-899.98,0.00010679,2]
[344539888,1733538640750,-500.0,0.00010679,2]
[344539889,1733538640760,-500.0,0.00010679,2]
[344539890,1733538640769,-624.72918561,0.00010679,2]
[344539891,1733538640779,-790.04,0.00010679,2]
[344539892,1733538640789,-604.46,0.00010679,2]
[344539893,1733538640799,-618.41,0.00010679,2]
[344539894,1733538640808,-500.0,0.00010679,2]
[344539895,1733538640817,-500.0,0.00010679,2]
[344539896,1733538640826,-371.56905963,0.00010679,2]
[344539897,1733538640835,-537.38,0.00010679,2]
[344539898,1733538640844,-500.0,0.00010679,2]
[344539899,1733538640853,-500.0,0.00010679,2]
[344539900,1733538640862,-500.0,0.00010679,2]
[344539901,1733538640871,-521.67,0.00010679,2]
[344539902,1733538640881,-607.77,0.00010679,2]
[344539903,1733538640890,-500.0,0.00010679,2]
[344539904,1733538640899,-500.0,0.00010679,2]
[344539905,1733538640908,-598.30577596,0.00010679,2]
[344539906,1733538641197,200.0,9.162e-05,2]
[344539908,1733538643313,-491.82,0.00010069,2]
[344539909,1733538643323,-200.0,0.00010308,2]
[344539910,1733538643332,-500.0,0.00010405,2]
[344539911,1733538643341,-500.0,0.00010673,2]
[344539912,1733538643350,-4.87422404,0.00010679,2]
[344539913,1733538643359,-500.0,0.00010679,2]
[344539914,1733538643369,-647.48,0.00010679,2]
[344539915,1733538643379,-607.67,0.00010679,2]
[344539916,1733538643388,-691.8,0.00010679,2]
[344539917,1733538643398,-500.0,0.00010679,2]
[344539918,1733538643407,-103.57696166,0.00010679,2]
[344539919,1733538643419,-396.42303834,0.00010679,2]
[344539920,1733538643430,-197.872004,0.00010679,2]
[344539921,1733538643443,-500.0,0.00010679,2]
[344539922,1733538643455,-500.0,0.00010679,2]
[344539923,1733538643464,-500.0,0.00010679,2]
[344539924,1733538643480,-500.0,0.00010679,2]
[344539925,1733538643489,-58.42988751,0.00010679,2]
[344539926,1733538643523,-441.57011249,0.00010679,2]
[344539927,1733538643533,-728.64,0.00010679,2]
[344539928,1733538643543,-500.0,0.00010679,2]
[344539929,1733538643552,-500.0,0.00010679,2]
[344539930,1733538643562,-500.0,0.00010679,2]
[344539931,1733538643571,-640.13,0.00010679,2]
[344539932,1733538643581,-598.85123535,0.00010679,2]
[344539933,1733538643590,-500.0,0.00010679,2]
[344539934,1733538643599,-500.0,0.00010679,2]
[344539935,1733538643608,-1243.41,0.00010679,2]
[344539936,1733538643617,-500.0,0.00010679,2]
[344539937,1733538643628,-500.0,0.00010679,2]
[344539938,1733538643637,-500.0,0.00010679,2]
[344539939,1733538643646,-500.0,0.00010679,2]
[344539940,1733538643656,-500.0,0.00010679,2]
[344539941,1733538643665,-500.0,0.00010679,2]
[344539942,1733538643675,-535.81,0.00010679,2]
[344539943,1733538643684,-729.39,0.00010679,2]
[344539944,1733538643693,-500.0,0.00010679,2]
[344539945,1733538643705,-500.0,0.00010679,2]
[344539946,1733538643715,-500.0,0.00010679,2]
[344539947,1733538643725,-993.22,0.00010679,2]
[344539948,1733538643734,-500.0,0.00010679,2]
[344539949,1733538643743,-559.72,0.00010679,2]
[344539950,1733538643753,-500.0,0.00010679,2]
[344539951,1733538643763,-500.0,0.00010679,2]
[344539952,1733538643772,-500.0,0.00010679,2]
[344539953,1733538643781,-500.0,0.00010679,2]
[344539954,1733538643791,-500.0,0.00010679,2]
[344539955,1733538643800,-500.0,0.00010679,2]
[344539956,1733538643810,-500.0,0.00010679,2]
[344539957,1733538643819,-500.0,0.00010679,2]
[344539958,1733538643828,-500.0,0.00010679,2]
[344539959,1733538643837,-500.0,0.00010679,2]
[344539960,1733538643846,-500.0,0.00010679,2]
[344539961,1733538643855,-617.62,0.00010679,2]
[344539962,1733538643864,-500.0,0.00010679,2]
[344539963,1733538643874,-500.0,0.00010679,2]
[344539964,1733538643883,-1318.28,0.00010679,2]
[344539965,1733538643892,-742.57,0.00010679,2]
[344539966,1733538643902,-500.0,0.00010679,2]
[344539967,1733538643911,-774.68,0.00010679,2]
[344539968,1733538643920,-500.0,0.00010679,2]
[344539969,1733538643929,-1979.9,0.00010679,2]
[344539970,1733538643938,-500.0,0.00010679,2]
[344539971,1733538643952,-500.0,0.00010679,2]
[344539972,1733538643961,-500.0,0.00010679,2]
[344539973,1733538643970,-500.0,0.00010679,2]
[344539974,1733538643979,-500.0,0.00010679,2]
[344539975,1733538643988,-846.08,0.00010679,2]
[344539976,1733538643997,-500.0,0.00010679,2]
[344539977,1733538644007,-500.0,0.00010679,2]
[344539978,1733538644015,-514.34,0.00010679,2]
[344539979,1733538644025,-500.0,0.00010679,2]
[344539980,1733538644034,-500.0,0.00010679,2]
[344539981,1733538644044,-500.0,0.00010679,2]
[344539983,1733538644053,-550.07,0.00010679,2]
[344539985,1733538644062,-522.22,0.00010679,2]
[344539986,1733538644072,-701.93,0.00010679,2]
[344539988,1733538644081,-500.0,0.00010679,2]
[344539990,1733538644091,-614.5,0.00010679,2]
[344539992,1733538644100,-500.0,0.00010679,2]
[344539994,1733538644109,-1163.46,0.00010679,2]
[344539996,1733538644118,-500.0,0.00010679,2]
[344539998,1733538644127,-1144.35,0.00010679,2]
[344540000,1733538644136,-500.0,0.00010679,2]
[344540002,1733538644145,-500.0,0.00010679,2]
[344540004,1733538644155,-500.0,0.00010679,2]
[344540006,1733538644164,-664.22,0.00010679,2]
[344540008,1733538644173,-1041.71,0.00010679,2]
[344540010,1733538644182,-820.68,0.00010679,2]
[344540012,1733538644195,-631.36,0.00010679,2]
[344540014,1733538644204,-7329.42,0.00010679,2]
[344540016,1733538644213,-2041.01,0.00010679,2]
[344540018,1733538644222,-500.0,0.00010679,2]
[344540020,1733538644231,-5670.47,0.00010679,2]
[344540022,1733538644240,-500.0,0.00010679,2]
[344540024,1733538644249,-500.0,0.00010679,2]
[344540026,1733538644258,-500.0,0.00010679,2]
[344540027,1733538644267,-500.0,0.00010679,2]
[344540028,1733538644275,-729.16,0.00010679,2]
[344540029,1733538644284,-1820.83,0.00010679,2]
[344540030,1733538644293,-674.3,0.00010679,2]
[344540031,1733538644303,-1395.19,0.00010679,2]
[344540032,1733538644312,-500.0,0.00010679,2]
[344540033,1733538644321,-1929.61,0.00010679,2]
[344540034,1733538644330,-5538.23,0.00010679,2]
[344540035,1733538644339,-1023.74,0.00010679,2]
[344540037,1733538644348,-500.0,0.00010679,2]
[344540039,1733538644357,-567.73,0.00010679,2]
[344540041,1733538644366,-1242.16,0.00010679,2]
[344540043,1733538644375,-1210.15,0.00010679,2]
[344540045,1733538644385,-707.46,0.00010679,2]
[344540047,1733538644394,-192.9,0.00010679,2]
[344540049,1733538644403,-500.0,0.00010679,2]
[344540051,1733538644412,-500.0,0.00010679,2]
[344540053,1733538644421,-500.0,0.00010679,2]
[344540055,1733538644430,-887.11,0.00010679,2]
[344540057,1733538644442,-500.0,0.00010679,2]
[344540059,1733538644451,-500.0,0.00010679,2]
[344540061,1733538644461,-889.28,0.00010679,2]
[344540063,1733538644470,-662.41,0.00010679,2]
[344540065,1733538644479,-500.0,0.00010679,2]
[344540067,1733538644488,-2834.98,0.00010679,2]
[344540069,1733538644497,-4185.18,0.00010679,2]
[344540071,1733538644506,-862.26,0.00010679,2]
[344540073,1733538644515,-788.23,0.00010679,2]
[344540075,1733538644525,-1314.55,0.00010679,2]
[344540077,1733538644536,-928.97,0.00010679,2]
[344540079,1733538644545,-828.3,0.00010679,2]
[344540081,1733538644554,-500.0,0.00010679,2]
[344540083,1733538644563,-576.01,0.00010679,2]
[344540085,1733538644572,-3211.95,0.00010679,2]
[344540087,1733538644581,-500.0,0.00010679,2]
[344540089,1733538644591,-500.0,0.00010679,2]
[344540091,1733538644601,-751.12,0.00010679,2]
[344540093,1733538644610,-500.0,0.00010679,2]
[344540096,1733538644622,-500.0,0.00010679,2]
[344540098,1733538644631,-500.0,0.00010679,2]
[344540100,1733538644640,-3036.57,0.00010679,2]
[344540102,1733538644650,-500.0,0.00010679,2]
[344540104,1733538644660,-500.0,0.00010679,2]
[344540106,1733538644669,-1462.66,0.00010679,2]
[344540108,1733538644678,-500.0,0.00010679,2]
[344540109,1733538644687,-587.23,0.00010679,2]
[344540111,1733538644699,-500.0,0.00010679,2]
[344540113,1733538644710,-500.0,0.00010679,2]
[344540116,1733538644720,-500.0,0.00010679,2]
[344540118,1733538644730,-500.0,0.00010679,2]
[344540119,1733538644739,-571.76,0.00010679,2]
[344540121,1733538644750,-752.19,0.00010679,2]
[344540123,1733538644760,-500.0,0.00010679,2]
[344540125,1733538644769,-500.0,0.00010679,2]
[344540127,1733538644778,-500.0,0.00010679,2]
[344540129,1733538644789,-737.56,0.00010679,2]
[344540131,1733538644799,-500.0,0.00010679,2]
[344540133,1733538644807,-500.0,0.00010679,2]
[344540135,1733538644816,-2841.72,0.00010679,2]
[344540137,1733538644825,-6067.72,0.00010679,2]
[344540139,1733538644835,-500.0,0.00010679,2]
[344540141,1733538644844,-500.0,0.00010679,2]
[344540143,1733538644853,-500.0,0.00010679,2]
[344540145,1733538644863,-500.0,0.00010679,2]
[344540147,1733538644872,-1421.56,0.00010679,2]
[344540149,1733538644881,-500.0,0.00010679,2]
[344540151,1733538644890,-638.59,0.00010679,2]
[344540153,1733538644900,-281.66562713,0.00010679,2]
[344540155,1733538644910,-5832.05,0.00010679,2]
[344540157,1733538644919,-500.0,0.00010679,2]
[344540159,1733538644928,-715.09,0.00010679,2]
[344540161,1733538644938,-557.30846316,0.00010679,2]
[344540163,1733538644949,-4366.17,0.00010679,2]
[344540165,1733538644959,-939.44,0.00010679,2]
[344540167,1733538644968,-1045.16,0.00010679,2]
[344540169,1733538644977,-585.96795314,0.00010679,2]
[344540171,1733538644986,-617.55,0.00010679,2]
[344540173,1733538644996,-500.0,0.00010679,2]
[344540175,1733538645005,-500.0,0.00010679,2]
[344540177,1733538645014,-1873.96,0.00010679,2]
[344540180,1733538645024,-500.0,0.00010679,2]
[344540181,1733538645033,-792.25,0.00010679,2]
[344540183,1733538645042,-500.0,0.00010679,2]
[344540185,1733538645051,-817.0,0.00010679,2]
[344540187,1733538645060,-612.93,0.00010679,2]
[344540189,1733538645070,-500.0,0.00010679,2]
[344540192,1733538645079,-502.36581085,0.0001068,2]
[344540193,1733538645088,-260.83297247,0.0001068,2]
[344540195,1733538645097,-191.85279772,0.0001068,2]
[344540197,1733538645107,-499.0821615,0.0001068,2]
[344540199,1733538645116,-500.75439113,0.0001068,2]
[344540201,1733538645125,-500.0,0.0001068,2]
[344540203,1733538645134,-506.21025951,0.0001068,2]
[344540205,1733538645143,-500.0,0.0001068,2]
[344540207,1733538645152,-500.0,0.0001068,2]
[344540209,1733538645161,-500.0,0.0001068,2]
[344540211,1733538645169,-502.58646261,0.0001068,2]
[344540213,1733538645179,-500.0,0.0001068,2]
[344540215,1733538645188,-500.0,0.0001068,2]
[344540218,1733538645200,-500.0,0.0001068,2]
[344540220,1733538645210,-500.0,0.0001068,2]
[344540221,1733538645219,-500.0,0.0001068,2]
[344540224,1733538645229,-500.0,0.0001068,2]
[344540226,1733538645238,-500.0,0.0001068,2]
[344540227,1733538645248,-484.35736316,0.0001068,2]
[344540230,1733538645258,-558.99,0.0001068,2]
[344540232,1733538645268,-500.0,0.0001068,2]
[344540234,1733538645277,-641.29,0.0001068,2]
[344540235,1733538645286,-500.0,0.0001068,2]
[344540237,1733538645295,-771.41,0.0001068,2]
[344540240,1733538645305,-500.0,0.0001068,2]
[344540242,1733538645315,-520.7,0.0001068,2]
[344540243,1733538645323,-872.9,0.0001068,2]
[344540246,1733538645333,-500.0,0.0001068,2]
[344540248,1733538645343,-500.0,0.0001068,2]
[344540250,1733538645352,-500.0,0.0001068,2]
[344540252,1733538645361,-674.13,0.0001068,2]
[344540254,1733538645370,-662.04,0.0001068,2]
[344540256,1733538645379,-573.99,0.0001068,2]
[344540258,1733538645388,-500.0,0.0001068,2]
[344540260,1733538645398,-500.0,0.0001068,2]
[344540262,1733538645408,-500.0,0.0001068,2]
[344540264,1733538645417,-500.0,0.0001068,2]
[344540265,1733538645427,-439.38022423,0.0001068,2]
[344540268,1733538645436,-500.0,0.0001068,2]
[344540270,1733538645448,-500.0,0.0001068,2]
[344540272,1733538645458,-669.46,0.0001068,2]
[344540273,1733538645467,-569.89,0.0001068,2]
[344540275,1733538645476,-500.0,0.0001068,2]
[344540277,1733538645485,-329.15560521,0.0001068,2]
[344540279,1733538645495,-500.0,0.0001068,2]
[344540281,1733538645504,-500.0,0.0001068,2]
[344540283,1733538645513,-500.0,0.0001068,2]
[344540284,1733538645522,-500.0,0.0001068,2]
[344540285,1733538645532,-504.97724575,0.0001068,2]
[344540286,1733538645541,-608.53,0.0001068,2]
[344540287,1733538645551,-500.0,0.0001068,2]